bitfinex/quotes_ETHUSD_20260106
["timestamp","ask_amount","ask_price","bid_price","bid_amount"]
[1767669784588,0.97741321,3214.5,3213.5,0.93011299]
[1767669784794,0.97741321,3214.4,3213.5,0.93011299]
[1767669786484,0.97741321,3214.2,3213.5,0.93011299]
[1767669787761,0.97741321,3214.2,3213.0,0.93011299]
[1767669787762,4.08870408,3214.1,3213.0,0.93011299]
[1767669788259,0.97741321,3214.0,3213.0,0.93011299]
[1767669788869,4.08884567,3214.0,3213.0,0.93011299]
[1767669789083,4.08884567,3214.0,3213.2,0.93011299]
[1767669790087,4.08884567,3214.0,3213.3,0.002]
[1767669790265,8.01527813,3214.0,3213.3,0.93211299]
[1767669790465,0.97741321,3213.9,3213.3,0.002]
[1767669790861,4.08896326,3213.9,3213.3,0.002]
[1767669791060,0.97741321,3213.9,3213.3,0.002]
[1767669791290,3.92642593,3214.0,3213.3,0.93211299]
[1767669791885,4.7279313,3214.0,3213.3,0.93211299]
[1767669795588,0.97741321,3213.9,3213.3,0.93211299]
[1767669795787,0.97741321,3213.9,3213.3,0.002]
[1767669796296,3.92642593,3214.0,3213.3,0.93211299]
[1767669797795,4.90383914,3214.0,3213.3,0.93211299]
[1767669798090,0.97741321,3213.9,3213.3,0.93211299]
[1767669799596,0.97741321,3213.9,3213.3,0.002]
[1767669800096,4.08897902,3213.9,3213.3,0.002]
[1767669800399,0.97741321,3213.8,3213.3,0.002]
[1767669800896,3.92641867,3214.0,3213.3,0.93211299]
[1767669813986,0.815,3214.0,3213.3,0.93211299]
[1767669814183,0.815,3214.0,3213.5,0.97435497]
[1767669815313,0.815,3214.0,3213.6,0.002]
[1767669816096,3.92639743,3214.0,3213.6,0.002]
[1767669816413,0.919512,3213.9,3213.6,0.002]
[1767669818009,0.815,3214.0,3213.6,0.002]
[1767669818191,0.815,3214.0,3213.6,0.97635497]
[1767669818798,4.84591063,3214.0,3213.6,0.002]
[1767669819096,1.40410306,3213.9,3213.6,0.002]
[1767669819797,4.5155943,3213.9,3213.6,0.002]
[1767669820001,0.815,3214.0,3213.6,0.002]
[1767669820603,3.92639357,3214.0,3213.6,0.002]
[1767669824116,3.11136501,3214.1,3213.6,0.002]
[1767669824300,4.03068196,3214.3,3213.6,0.97635497]
[1767669824301,0.29117525,3214.0,3213.6,0.97635497]
[1767669824493,0.815,3214.1,3213.6,0.97635497]
[1767669828328,0.815,3214.1,3213.9,0.002]
[1767669829489,0.71990271,3214.5,3213.9,0.97635497]
[1767669829696,0.55689111,3215.1,3213.9,0.97635497]
[1767669829697,1.10615978,3214.4,3213.9,0.97635497]
[1767669829895,0.815,3214.5,3213.9,0.97635497]
[1767669830522,3.92590389,3214.5,3213.9,0.97635497]
[1767669831194,0.29097119,3214.4,3213.9,0.97635497]
[1767669831522,0.919512,3214.4,3213.9,0.002]
[1767669831725,0.919512,3214.3,3213.6,0.002]
[1767669831923,0.919512,3214.1,3213.6,0.002]
[1767669832498,3.11138767,3214.0,3213.6,0.002]
[1767669833327,4.03083728,3214.1,3213.6,0.002]
[1767669834326,7.8563578,3214.1,3213.6,0.002]
[1767669834529,0.919512,3213.9,3213.0,0.97503262]
[1767669834829,4.03103774,3213.9,3213.0,0.97503262]
[1767669835234,7.14256348,3213.9,3213.0,0.97503262]
[1767669835533,7.93831983,3213.9,3213.0,0.97503262]
[1767669836201,0.96106873,3213.8,3213.0,0.97503262]
[1767669836728,0.96106873,3213.7,3213.0,0.97503262]
[1767669837434,6.22329222,3213.8,3213.0,0.00067765]
[1767669837435,0.96106873,3213.5,3213.0,0.00067765]
[1767669838441,1.77606873,3213.5,3213.0,0.00067765]
[1767669838645,0.17760687,3213.4,3213.0,0.00067765]
[1767669839136,3.28960095,3213.4,3213.0,0.00067765]
[1767669840006,0.17760687,3213.4,3213.0,0.00067765]
[1767669840207,4.88801889,3213.5,3213.0,0.00067765]
[1767669840927,0.815,3213.5,3213.0,0.94620946]
[1767669841144,3.11095811,3214.5,3213.2,0.90009791]
[1767669841325,8.25760204,3214.4,3213.2,0.90009791]
[1767669841518,0.29078653,3214.3,3213.3,0.90009791]
[1767669841729,0.29078653,3214.2,3213.3,0.90009791]
[1767669842021,3.92600049,3214.4,3213.3,0.90209791]
[1767669842216,0.29075289,3214.3,3213.3,0.90209791]
[1767669842415,3.92600049,3214.4,3213.3,0.90209791]
[1767669842611,0.29075949,3214.3,3213.3,0.90209791]
[1767669842824,3.92600049,3214.4,3213.3,0.90209791]
[1767669843026,0.29075946,3214.3,3213.3,0.90209791]
[1767669843230,0.815,3214.4,3213.4,0.90009791]
[1767669843430,0.29075666,3214.3,3213.6,0.90009791]
[1767669843732,3.92602025,3214.4,3213.6,0.90009791]
[1767669843923,0.29075656,3214.3,3213.6,0.90009791]
[1767669844123,7.0370405,3214.4,3213.6,0.90009791]
[1767669844326,0.29075671,3214.3,3213.6,0.90009791]
[1767669844525,7.0370405,3214.4,3213.6,0.90009791]
[1767669844717,1.08744221,3214.3,3213.6,0.90009791]
[1767669844916,0.7966855,3214.3,3213.6,0.90009791]
[1767669845835,3.11119407,3214.2,3213.6,0.90009791]
[1767669848544,7.15220267,3214.2,3213.6,0.90009791]
[1767669850030,4.0410086,3214.2,3213.6,0.90009791]
[1767669850230,0.79488095,3214.1,3213.6,0.90009791]
[1767669850721,3.90625126,3214.1,3213.4,0.90009791]
[1767669850936,0.92981453,3214.0,3213.4,0.90009791]
[1767669853530,0.001,3213.9,3213.4,0.90009791]
[1767669857549,0.001,3213.9,3213.3,0.002]
[1767669857550,0.93081453,3213.9,3213.3,0.002]
[1767669857758,0.92981453,3213.8,3213.3,0.002]
[1767669857913,0.92981453,3213.6,3213.3,0.002]
[1767669858741,0.92981453,3213.5,3213.3,0.002]
[1767669860025,3.1118043,3213.6,3213.3,0.002]
[1767669860453,4.21611769,3213.7,3213.3,0.002]
[1767669861246,0.92981453,3213.6,3213.3,0.002]
[1767669862330,1.66258773,3213.6,3213.3,0.002]
[1767669862852,0.7327732,3213.6,3213.3,0.002]
[1767669863428,1.66258773,3213.6,3213.3,0.002]
[1767669864553,4.77436918,3213.6,3213.3,0.002]
[1767669865557,1.66258773,3213.6,3213.3,0.002]
[1767669865744,4.7743679,3213.6,3213.3,0.002]
[1767669866234,0.92981453,3213.4,3213.0,0.00067765]
[1767669866548,0.815,3213.3,3213.0,0.00067765]
[1767669872162,3.92709491,3213.3,3213.0,0.00067765]
[1767669872337,3.92709491,3213.3,3212.6,0.96997458]
[1767669872338,0.97705528,3213.2,3212.6,0.96997458]
[1767669873444,0.97705528,3213.2,3212.5,0.002]
[1767669873650,0.80162451,3213.1,3212.5,0.002]
[1767669873854,3.11235605,3213.0,3212.5,0.002]
[1767669874644,0.97705528,3212.9,3212.5,0.002]
[1767669874862,1.79205528,3212.8,3212.5,0.002]
[1767669875864,4.90466887,3212.8,3212.5,0.002]
[1767669876170,0.97705528,3212.7,3212.3,0.002]
[1767669877747,0.97705528,3212.7,3212.5,0.002]
[1767669878148,4.08978126,3212.7,3212.5,0.002]
[1767669878668,4.08978126,3212.7,3212.3,0.002]
[1767669879440,0.97705528,3212.7,3212.3,0.002]
[1767669879645,4.72933968,3212.8,3212.3,0.002]
[1767669879962,0.47293397,3212.7,3212.3,0.002]
[1767669881564,3.58558187,3212.7,3212.3,0.002]
[1767669882263,0.47293397,3212.7,3212.3,0.002]
[1767669882464,0.815,3212.6,3212.3,0.97197458]
[1767669882665,0.001,3213.3,3213.1,0.96997458]
[1767669882868,0.97705528,3214.8,3213.8,0.96997458]
[1767669883070,0.1017236,3214.6,3214.1,0.81466231]
[1767669884539,3.21255025,3214.6,3214.1,0.81466231]
[1767669885037,6.3233769,3214.6,3214.1,0.81466231]
[1767669885486,0.70218263,3214.5,3213.5,0.96997458]
[1767669885773,0.70255595,3214.4,3213.5,0.96997458]
[1767669886744,3.81357567,3214.4,3213.5,0.96997458]
[1767669886949,0.70255595,3214.4,3213.5,0.96997458]
[1767669888065,3.81356161,3214.4,3213.5,0.96997458]
[1767669888267,3.11100566,3214.4,3213.5,0.96997458]
[1767669888467,3.81311683,3214.5,3213.5,0.96997458]
[1767669888665,0.1017236,3214.3,3213.5,0.96997458]
[1767669888842,3.21282499,3214.3,3213.5,0.96997458]
[1767669889467,0.001,3214.2,3213.5,0.96997458]
[1767669890065,0.70318263,3214.2,3213.5,0.96997458]
[1767669892662,0.1017236,3214.1,3213.5,0.96997458]
[1767669894644,0.1017236,3214.1,3213.7,0.96997458]
[1767669900893,0.002,3215.1,3214.2,0.99631191]
[1767669901094,3.11233689,3215.1,3214.2,0.99631191]
[1767669901395,3.01233689,3215.1,3214.4,0.98157715]
[1767669901695,0.68247579,3215.0,3214.4,0.98157715]
[1767669903498,3.79290468,3215.0,3214.4,0.98157715]
[1767669904003,0.70218263,3214.4,3213.8,0.002]
[1767669904161,0.70218263,3214.4,3213.6,0.98157715]
[1767669904162,4.64663637,3214.2,3213.6,0.98157715]
[1767669904589,7.45925909,3214.3,3213.6,0.98157715]
[1767669904892,4.34816181,3214.3,3213.6,0.98157715]
[1767669905686,0.70218263,3214.5,3213.6,1.01269489]
[1767669905998,3.11091531,3214.5,3213.8,0.98157715]
[1767669906369,6.22183062,3214.5,3213.8,0.98157715]
[1767669906564,6.92401325,3214.5,3213.5,0.002]
[1767669906791,0.70218263,3214.3,3213.5,0.002]
[1767669906976,1.85924759,3214.3,3213.5,0.002]
[1767669907290,0.70218263,3214.0,3212.8,0.98157715]
[1767669907477,1.51718263,3214.0,3212.8,0.98157715]
[1767669908201,3.11148448,3213.9,3212.8,0.98157715]
[1767669908497,3.07072753,3213.9,3213.2,0.98157715]
[1767669909994,4.62860515,3214.0,3213.2,0.98157715]
[1767669910605,5.09146567,3214.0,3213.2,0.98157715]
[1767669911499,8.20288819,3214.0,3213.2,0.98157715]
[1767669911674,0.74610689,3213.9,3213.2,0.98157715]
[1767669912569,3.1115813,3213.8,3213.2,0.98157715]
[1767669914779,6.2231626,3213.8,3213.2,0.98157715]
[1767669914999,3.1115813,3213.8,3213.2,0.98157715]
[1767669915201,0.74610689,3213.7,3212.8,0.98157715]
[1767669915386,0.74610689,3213.7,3213.0,0.98157715]
[1767669915704,0.74610689,3213.7,3212.9,0.40942094]
[1767669916593,0.74610689,3213.7,3212.6,0.815]
[1767669917501,0.74610689,3213.7,3212.6,4.90930893]
[1767669917502,0.74610689,3213.6,3212.6,4.90930893]
[1767669918303,0.74610689,3213.6,3212.6,1.79657715]
[1767669918597,0.74610689,3213.6,3212.6,0.815]
[1767669919098,0.74610689,3213.6,3212.6,3.92773662]
[1767669919278,0.74610689,3213.6,3212.7,0.39277366]
[1767669919700,0.74610689,3213.5,3212.7,0.39277366]
[1767669920101,3.11178625,3213.6,3212.8,0.98157715]
[1767669920601,3.1117212,3213.7,3212.8,0.98157715]
[1767669921601,3.11162289,3213.8,3212.8,0.98157715]
[1767669921794,3.11162289,3213.8,3213.0,0.98157715]
[1767669924108,6.22406627,3213.9,3213.0,0.98157715]
[1767669924599,6.22406627,3213.9,3213.0,0.98357715]
[1767669926577,3.11250293,3213.9,3213.0,0.98357715]
[1767669928016,6.22406627,3213.9,3213.0,0.98357715]
[1767669928203,3.11250293,3213.9,3213.0,0.98357715]
[1767669929296,6.22406627,3213.9,3213.0,0.98357715]
[1767669929485,3.11250293,3213.9,3213.0,0.98357715]
[1767669930207,0.74610689,3213.8,3213.0,0.98357715]
[1767669930543,0.83281836,3213.8,3213.0,0.89647798]
[1767669930700,0.99518296,3213.5,3212.6,0.98357715]
[1767669930903,1.55936489,3213.4,3212.6,0.98357715]
[1767669931286,0.97170412,3213.3,3212.6,0.98357715]
[1767669931688,4.0837803,3213.3,3212.6,0.98357715]
[1767669934598,0.97170412,3213.3,3212.6,0.98357715]
[1767669934927,3.1115813,3213.8,3212.7,1.01284579]
[1767669935130,0.29075844,3213.7,3212.9,0.98171933]
[1767669935331,3.1115813,3213.8,3212.9,0.98171933]
[1767669935627,0.29076268,3213.7,3212.9,0.98171933]
[1767669935824,3.1115813,3213.8,3212.9,1.16763314]
[1767669936030,3.4025193,3213.7,3212.9,1.16763314]
[1767669936330,3.11175662,3213.7,3212.9,1.16763314]
[1767669937506,3.11175662,3213.7,3212.9,1.16963314]
[1767669938633,3.11158302,3213.8,3213.1,0.98171933]
[1767669938634,3.09575405,3213.8,3213.1,0.98171933]
[1767669938846,0.29084965,3213.7,3213.1,0.98171933]
[1767669939002,0.97170412,3213.7,3213.1,0.98171933]
[1767669940601,3.11177495,3213.6,3213.1,0.98171933]
[1767669943233,3.73036322,3213.8,3213.1,0.98171933]
[1767669943526,3.11158204,3213.8,3213.1,0.98171933]
[1767669943742,1.78770412,3213.9,3213.1,0.98171933]
[1767669944030,0.29089002,3213.8,3213.1,0.98171933]
[1767669944205,1.78770412,3213.9,3213.1,0.98171933]
[1767669944409,0.29092245,3213.8,3213.1,0.98171933]
[1767669944602,1.78770412,3213.9,3213.2,0.98171933]
[1767669944803,0.29092245,3213.8,3213.2,0.98171933]
[1767669945100,0.816,3213.9,3213.2,0.98171933]
[1767669945446,0.29093728,3213.8,3213.2,0.98171933]
[1767669945606,0.816,3213.9,3213.2,0.98171933]
[1767669945805,0.29093728,3213.8,3213.2,0.98171933]
[1767669946032,0.816,3213.9,3213.2,0.98171933]
[1767669946217,0.001,3213.9,3213.3,0.98171933]
[1767669947813,0.001,3213.9,3213.4,0.98171933]
[1767669949508,0.001,3213.6,3213.4,0.98171933]
[1767669949708,0.001,3213.9,3213.3,0.98171933]
[1767669949907,0.001,3213.9,3213.5,0.98171933]
[1767669953249,0.815,3215.0,3213.8,0.98171933]
[1767669953543,0.97170412,3214.8,3213.8,0.98171933]
[1767669953740,3.40140756,3214.7,3213.8,0.98171933]
[1767669953939,0.97170412,3214.5,3213.8,0.40933974]
[1767669954110,0.97170412,3214.5,3213.5,1.79671933]
[1767669954313,0.97170412,3214.5,3213.6,0.98171933]
[1767669955926,0.92033471,3214.4,3213.6,0.98171933]
[1767669958317,0.92033471,3214.3,3213.4,1.3506468]
[1767669958646,0.92033471,3214.3,3213.4,0.94126185]
[1767669960248,0.92033471,3214.1,3213.4,0.94126185]
[1767669960649,0.92033471,3214.1,3213.2,0.94126185]
[1767669961057,6.22238814,3214.2,3213.0,0.94126185]
[1767669961058,0.90316608,3213.9,3213.0,0.94126185]
[1767669961270,0.90316608,3213.7,3212.9,0.002]
[1767669961757,0.90316608,3213.7,3213.4,0.002]
[1767669962463,0.90316608,3213.5,3213.4,0.002]
[1767669962760,0.90316608,3213.5,3212.9,0.002]
[1767669964755,4.01513471,3213.4,3212.9,0.002]
[1767669966342,4.7278361,3213.4,3212.9,0.002]
[1767669967093,4.01546217,3214.1,3213.2,0.92131584]
[1767669967367,0.001,3214.1,3213.4,0.92131584]
[1767669968159,0.001,3214.1,3213.6,0.92131584]
[1767669968376,0.90316608,3214.6,3214.0,0.92131584]
[1767669968675,0.90316608,3214.4,3213.7,0.49659198]
[1767669969033,0.90316608,3214.4,3213.5,4.06424745]
[1767669969365,3.1108219,3214.6,3213.6,0.92131584]
[1767669969567,0.29045328,3214.5,3213.7,0.92131584]
[1767669969780,1.71816608,3214.7,3213.7,0.89096857]
[1767669969961,0.29043639,3214.6,3213.7,0.89096857]
[1767669970160,1.71816608,3214.7,3213.7,0.89096857]
[1767669970465,4.01371916,3214.9,3213.8,0.92131584]
[1767669970660,0.77328146,3214.8,3213.8,0.92131584]
[1767669970838,0.48287192,3214.8,3213.8,0.92131584]
[1767669971235,3.59354528,3214.8,3213.8,0.92131584]
[1767669972166,0.90316608,3214.7,3213.8,0.92131584]
[1767669973367,4.01392284,3214.7,3213.8,0.92131584]
[1767669973570,0.44967948,3214.6,3213.8,0.92131584]
[1767669973865,0.44967948,3214.6,3213.9,0.92131584]
[1767669975251,0.001,3214.5,3213.9,0.92131584]
[1767669976263,0.90416608,3214.5,3213.6,0.92131584]
[1767669976768,0.001,3214.5,3213.7,3.11166919]
[1767669976969,0.001,3214.5,3213.9,0.92131584]
[1767669978373,0.90416608,3214.5,3213.7,0.92131584]
[1767669979459,0.90416608,3214.5,3213.9,0.92131584]
[1767669979878,0.001,3214.5,3213.9,0.92131584]
[1767669981779,3.11031195,3215.2,3214.4,0.92131584]
[1767669981982,1.72016608,3215.4,3214.4,0.92131584]
[1767669982391,0.002,3215.4,3214.6,0.92131584]
[1767669982681,0.002,3215.4,3214.8,0.92131584]
[1767669983582,0.002,3215.4,3215.0,0.92131584]
[1767669986579,0.002,3215.4,3214.7,0.92131584]
[1767669987084,0.002,3215.4,3214.7,4.03199698]
[1767669987289,0.002,3215.4,3214.8,1.32451554]
[1767669988676,0.002,3215.4,3214.8,4.4351116]
[1767669988870,0.002,3215.4,3214.9,0.92131584]
[1767669989084,0.001,3215.1,3214.9,0.92131584]
[1767669989289,0.001,3215.1,3214.8,3.51379576]
[1767669989290,0.002,3215.4,3214.8,3.51379576]
[1767669989493,0.002,3215.4,3214.9,0.75458119]
[1767669990492,0.90516608,3215.4,3214.9,0.75458119]
[1767669990793,0.002,3215.4,3214.8,1.32451554]
[1767669992688,0.002,3215.4,3214.8,4.43512781]
[1767669993595,0.002,3215.4,3214.8,1.32451554]
[1767669994596,0.002,3215.4,3214.8,4.43512835]
[1767669994995,0.002,3215.4,3214.9,0.97903023]
[1767669995184,0.002,3215.4,3214.9,1.4283145]
[1767669998870,0.002,3215.4,3214.9,4.53882801]
[1767669999199,1e-08,3215.4,3214.9,3.55979778]
[1767669999374,0.81473232,3215.9,3214.9,3.55979778]
[1767669999576,4.73922173,3216.0,3215.0,0.97903023]
[1767669999775,1.28865449,3215.9,3215.0,0.97903023]
[1767670000092,1.28865449,3215.9,3215.0,0.96573433]
[1767670000093,0.82802822,3215.8,3215.0,0.96573433]
[1767670001703,0.82802822,3215.8,3215.1,0.001]
[1767670002198,0.47392217,3215.9,3215.1,1.01113346]
[1767670002403,0.002,3215.4,3215.1,1.01113346]
[1767670002611,0.82802822,3215.9,3215.1,1.01113346]
[1767670003804,0.82802822,3215.9,3215.2,3.11022642]
[1767670004012,1.64302822,3216.1,3215.3,1.01013152]
[1767670004181,0.815,3216.1,3215.3,1.01013152]
[1767670004379,1.2904222,3216.1,3215.3,1.01013152]
[1767670004578,2.06845042,3216.1,3215.3,0.97903023]
[1767670004778,1.30345042,3216.1,3215.3,0.97903023]
[1767670004979,2.11845042,3216.1,3215.3,0.97903023]
[1767670006584,2.11845042,3216.1,3215.4,0.97903023]
[1767670009712,3.11120141,3216.3,3215.5,0.97903023]
[1767670009713,0.83002822,3216.3,3215.5,0.97903023]
[1767670009917,0.002,3216.3,3215.6,0.97903023]
[1767670010417,0.00074352,3216.3,3216.1,0.97903023]
[1767670014622,0.002,3217.4,3216.3,0.97903023]
[1767670014819,0.29021506,3217.3,3216.5,0.97212652]
[1767670015019,0.002,3217.4,3216.6,0.97212652]
[1767670017224,0.002,3217.4,3216.8,0.97212652]
[1767670017399,0.82802822,3217.9,3217.2,0.97212652]
[1767670017717,0.82802822,3218.2,3217.2,0.97212652]
[1767670017890,0.82802822,3218.0,3217.2,0.97212652]
[1767670019090,0.62797124,3218.1,3217.2,0.97212652]
[1767670019290,3.93536494,3218.2,3217.2,0.97212652]
[1767670019520,7.04270166,3218.2,3217.2,0.97212652]
[1767670019729,0.82802822,3218.1,3216.9,0.91334888]
[1767670019908,0.91342784,3217.9,3217.0,0.97212652]
[1767670020222,0.91342784,3217.9,3216.9,0.09834888]
[1767670020429,0.91342784,3217.9,3216.9,1.0704754]
[1767670020729,0.91342784,3217.8,3216.9,1.0704754]
[1767670021628,1.16793859,3218.0,3217.0,0.98224683]
[1767670021816,4.02067059,3218.3,3217.2,0.98224683]
[1767670022016,0.91342784,3218.3,3217.2,0.98224683]
[1767670023534,0.91342784,3218.2,3217.2,0.98224683]
[1767670023928,5.45168419,3218.6,3217.2,4.09045678]
[1767670024230,0.54516842,3218.5,3217.2,0.98224683]
[1767670024428,3.65220585,3218.5,3217.2,0.98224683]
[1767670024736,6.75925581,3218.5,3217.2,4.09051614]
[1767670024915,3.65220585,3218.5,3217.2,4.09051614]
[1767670025116,5.21085455,3218.6,3217.3,0.814]
[1767670025306,0.52108545,3218.5,3217.4,0.98224683]
[1767670026116,0.52108545,3218.5,3217.6,0.98224683]
[1767670026316,3.62812696,3218.5,3217.6,0.98224683]
[1767670026516,0.002,3218.2,3217.6,0.98224683]
[1767670027242,0.52308545,3218.5,3217.6,0.98224683]
[1767670027243,0.002,3218.5,3217.6,0.98224683]
[1767670027411,0.002,3218.5,3217.4,6.21616948]
[1767670027412,0.002,3218.5,3217.8,0.98224683]
[1767670027612,0.002,3218.5,3218.0,0.98224683]
[1767670027811,0.00036183,3218.5,3218.0,0.98224683]
[1767670028036,0.2,3219.3,3218.4,0.98224683]
[1767670028238,0.2,3219.3,3218.6,0.98224683]
[1767670028640,0.2,3219.3,3218.7,0.98224683]
[1767670030048,0.1,3219.3,3218.7,0.98224683]
[1767670030451,3.20627477,3219.3,3218.1,0.98224683]
[1767670030625,1.09491334,3219.2,3218.2,1.79624683]
[1767670033118,3.10645832,3219.1,3218.2,1.79624683]
[1767670033542,6.21491664,3219.1,3218.2,0.98224683]
[1767670033734,0.002,3219.0,3218.1,0.814]
[1767670033915,0.62149166,3218.9,3218.1,1.79624683]
[1767670034117,0.62149166,3218.9,3218.2,0.814]
[1767670035449,0.62149166,3218.9,3218.1,0.98224683]
[1767670035744,0.002,3219.0,3218.2,0.814]
[1767670036053,6.21291664,3219.1,3218.2,1.79624683]
[1767670036723,6.21491664,3219.1,3218.2,1.79624683]
[1767670037635,0.002,3219.1,3218.2,1.79624683]
[1767670038448,6.21272364,3219.2,3218.3,0.98224683]
[1767670038643,0.63127236,3219.1,3218.3,0.98224683]
[1767670038845,0.002,3218.7,3218.3,0.98224683]
[1767670040426,0.002,3219.0,3218.6,0.98224683]
[1767670042055,0.002,3219.0,3218.7,1.79624683]
[1767670042940,0.1,3219.3,3218.8,0.98224683]
[1767670043824,0.42062267,3219.3,3218.8,0.98224683]
[1767670044461,3.52690226,3219.3,3218.8,0.98224683]
[1767670044663,3.52690226,3219.3,3218.7,0.814]
[1767670045158,3.52690226,3219.3,3218.5,0.98224683]
[1767670045339,6.63518185,3219.3,3218.6,0.814]
[1767670045540,0.66351819,3219.2,3218.6,0.814]
[1767670045735,0.66351819,3219.2,3218.6,1.79624683]
[1767670045944,0.66351819,3219.2,3218.7,0.98224683]
[1767670046146,0.66351819,3219.2,3218.8,0.98224683]
[1767670046664,0.1,3219.3,3218.8,0.98224683]
[1767670046966,0.1,3219.3,3218.8,1.79624683]
[1767670047163,0.1,3219.3,3218.9,0.98224683]
[1767670049678,3.20628814,3219.3,3218.9,0.98224683]
[1767670050164,3.20628814,3219.3,3218.8,0.814]
[1767670050341,3.20628814,3219.3,3218.6,0.98224683]
[1767670050342,0.92085562,3219.2,3218.0,3.10747934]
[1767670050546,0.63124607,3219.2,3218.2,0.98224683]
[1767670050757,0.63124607,3219.2,3218.6,0.001]
[1767670050965,0.002,3219.0,3218.7,0.814]
[1767670051777,0.002,3219.0,3218.8,0.92819988]
[1767670053218,0.002,3219.0,3218.6,0.001]
[1767670053478,0.002,3219.0,3218.8,0.814]
[1767670053774,0.37596648,3219.0,3218.8,0.814]
[1767670055553,0.002,3219.0,3218.8,0.814]
[1767670058078,0.002,3219.0,3218.7,0.814]
[1767670058661,0.002,3219.0,3218.6,0.001]
[1767670061288,0.002,3219.0,3218.6,0.92919988]
[1767670062607,0.104,3219.3,3218.8,0.92819988]
[1767670062608,0.102,3219.3,3218.8,0.92819988]
[1767670063293,0.29038609,3219.2,3218.8,0.92819988]
[1767670063477,0.29038612,3219.1,3218.8,0.92819988]
[1767670063677,0.102,3219.3,3218.9,0.92919988]
[1767670063878,0.29039014,3219.2,3218.9,0.92919988]
[1767670064088,0.102,3219.3,3218.9,0.92919988]
[1767670064089,0.29039014,3219.1,3218.9,0.92919988]
[1767670064400,3.20827009,3219.3,3218.9,0.92919988]
[1767670064598,0.2904083,3219.2,3218.9,0.92919988]
[1767670064902,0.2904083,3219.1,3218.9,0.92919988]
[1767670065089,3.83970469,3219.3,3218.9,0.001]
[1767670065398,0.29040836,3219.2,3218.9,0.92919988]
[1767670065570,3.83970469,3219.3,3218.9,0.92919988]
[1767670065763,0.2904313,3219.2,3218.9,0.92919988]
[1767670065968,3.83970469,3219.3,3218.9,0.92919988]
[1767670066277,0.29043124,3219.2,3218.9,0.92919988]
[1767670066476,3.83970469,3219.3,3218.9,0.92919988]
[1767670066678,0.29045882,3219.2,3218.9,0.92919988]
[1767670066872,3.83970469,3219.3,3218.9,0.92919988]
[1767670067066,0.29045882,3219.2,3218.9,0.92919988]
[1767670067297,3.83970469,3219.3,3218.9,0.92919988]
[1767670067298,0.7334346,3219.3,3218.9,0.92919988]
[1767670067471,0.29049233,3219.2,3218.9,0.92919988]
[1767670067671,0.7334346,3219.3,3218.9,0.92919988]
[1767670067896,0.29049236,3219.2,3218.9,0.92919988]
[1767670068100,0.7334346,3219.3,3218.9,0.92919988]
[1767670068272,0.29049189,3219.2,3218.9,0.92919988]
[1767670068472,3.8397076,3219.3,3218.9,0.92919988]
[1767670068672,0.290533,3219.2,3218.9,0.92919988]
[1767670068874,0.7334346,3219.3,3218.9,0.92919988]
[1767670069076,0.29053297,3219.2,3218.9,0.92919988]
[1767670069280,0.102,3219.3,3218.9,0.92919988]
[1767670069502,0.29058441,3219.2,3218.9,0.92919988]
[1767670069702,0.102,3219.3,3218.9,0.92919988]
[1767670069897,0.29058444,3219.2,3218.9,0.92919988]
[1767670070206,0.102,3219.3,3218.9,0.92919988]
[1767670070415,0.29065644,3219.2,3218.9,0.92919988]
[1767670070597,3.20828136,3219.3,3218.9,0.92919988]
[1767670070800,0.29065663,3219.2,3218.9,0.92919988]
[1767670071105,3.20828136,3219.3,3218.9,0.92919988]
[1767670071295,0.29065673,3219.2,3218.9,0.92919988]
[1767670071495,3.20828136,3219.3,3218.9,0.92919988]
[1767670071695,0.29074952,3219.2,3218.9,0.92919988]
[1767670071896,6.31456272,3219.3,3218.7,0.92819988]
[1767670072198,0.29074963,3219.2,3218.7,0.92819988]
[1767670072507,0.29074963,3219.1,3218.7,0.92819988]
[1767670072708,3.83993763,3219.3,3218.7,0.92819988]
[1767670072909,0.2908283,3219.2,3218.7,0.92819988]
[1767670073232,0.2908283,3219.1,3218.7,0.92819988]
[1767670073513,3.83993763,3219.3,3218.7,0.92819988]
[1767670073804,3.39720957,3219.2,3218.7,0.92819988]
[1767670074007,0.29082831,3219.1,3218.7,0.92819988]
[1767670075417,0.002,3218.9,3218.7,0.92819988]
[1767670081082,5.8e-07,3218.9,3218.7,0.96973849]
[1767670081287,5.8e-07,3218.9,3218.6,0.001]
[1767670084028,5.8e-07,3218.9,3218.7,0.96973849]
[1767670106131,5.8e-07,3218.9,3218.6,0.001]
[1767670106446,5.8e-07,3218.9,3218.6,0.97073849]
[1767670129994,0.00200058,3218.9,3218.3,0.97277998]
[1767670130176,0.002,3218.8,3218.0,1.78677998]
[1767670130355,0.46291998,3218.9,3218.2,0.97277998]
[1767670130356,5.8e-07,3218.9,3218.2,0.97277998]
[1767670130681,5.8e-07,3218.9,3218.4,0.97277998]
[1767670134066,0.03611509,3219.3,3218.8,0.97277998]
[1767670134961,0.00138757,3219.3,3219.0,0.96178513]
[1767670135162,2.129e-05,3219.3,3219.0,0.96178513]
[1767670137359,2.129e-05,3219.3,3219.0,1.36862807]
[1767670137560,2.129e-05,3219.3,3219.0,4.47516241]
[1767670137895,2.129e-05,3219.3,3219.0,1.36862807]
[1767670138372,2.129e-05,3219.3,3219.0,0.96178513]
[1767670141369,2.129e-05,3219.3,3218.6,0.98226799]
[1767670141694,2.129e-05,3219.3,3218.8,0.98226799]
[1767670141895,2.129e-05,3219.3,3218.9,0.98226799]
[1767670142992,2.129e-05,3219.3,3219.0,0.98226799]
[1767670143302,2.129e-05,3219.3,3219.1,1.39115401]
[1767670146388,2.129e-05,3219.3,3219.1,0.98226799]
[1767670146775,0.002,3219.8,3219.4,0.98226799]
[1767670146998,0.002,3220.2,3219.2,4.62719343]
[1767670146999,0.002,3220.1,3219.2,4.62719343]
[1767670147598,0.002,3220.1,3219.3,3.10626533]
[1767670148004,0.002,3220.1,3219.2,8.71580388]
[1767670148190,0.002,3220.1,3219.3,0.95298039]
[1767670149221,0.002,3220.2,3219.4,0.98226799]
[1767670149913,0.004,3220.2,3219.4,0.98226799]
[1767670151578,0.004,3220.2,3219.5,0.98226799]
[1767670153190,0.002,3220.2,3219.5,0.98226799]
[1767670155431,0.002,3220.2,3219.6,0.98226799]
[1767670155924,0.004,3220.2,3219.6,0.98226799]
[1767670156493,0.002,3219.6,3217.5,0.001]
[1767670156830,4.62719343,3218.8,3218.3,0.82826799]
[1767670157036,0.98426799,3218.4,3217.6,0.98226799]
[1767670157202,0.46271934,3218.8,3217.6,0.98226799]
[1767670157387,3.10684437,3218.7,3217.6,4.09011534]